[Event "10th Iberoamericano-ch 2024"]
[Site "Linares"]
[Date "2024.09.27"]
[Round "4.29"]
[White "Mayorga Araya, Sofia"]
[Black "Sos Andreu, Eric"]
[Result "0-1"]
[ECO "B15"]
[WhiteElo "2059"]
[BlackElo "2359"]
[Annotator "RC"]
[PlyCount "62"]
[EventDate "2024.09.25"]
[EventType "swiss"]
[EventCountry "ESP"]
[SourceTitle "playchess.com"]
[Source "ChessBase"]
[SourceQuality "1"]
[TimeControl "5400+30"]

1. e4 {[%emt 0:00:01]} c6 {[%emt 0:03:51]} 2. d4 {[%emt 0:00:08]} d5 {[%emt 0:00:12]} 3. Nd2 {[%emt 0:00:05]} dxe4 {[%emt 0:00:13]} 4. Nxe4 {[%emt 0:00:04]} Nf6 {[%emt 0:00:06]} 5. Nxf6+ {[%emt 0:00:07]} exf6 {[%emt 0:00:04]} 6. c3 {[%emt 0:00:05]} Bd6 {[%emt 0:00:06]} 7. Bd3 {[%emt 0:00:03]} O-O {[%emt 0:00:06]} 8. Qc2 {[%emt 0:00:02]} Re8+ {[%emt 0:00:05]} 9. Ne2 {[%emt 0:00:05]} h5 {[%emt 0:00:18]} 10. Be3 {[%emt 0:00:58]} Nd7 {[%emt 0:00:18]} 11. O-O-O {[%emt 0:00:11]} Nf8 {[%emt 0:00:05]} 12. c4 {[%emt 0:00:34]} Be6 {[%emt 0:03:03]} 13. Nc3 {[%emt 0:02:34]} Rc8 {[%emt 0:00:27]} 14. Kb1 {[%emt 0:00:29]} Ng6 {[%emt 0:03:44]} 15. h3 {[%emt 0:15:30]} h4 {[%emt 0:03:12]} 16. g3 {[%emt 0:04:23]} hxg3 {[%emt 0:04:03]} 17. fxg3 {[%emt 0:02:20]} Qa5 {[%emt 0:07:18]} 18. Bd2 {[%emt 0:02:58]} Qc7 {[%emt 0:01:11]} 19. h4 {[%emt 0:03:15]} Bxg3 {[%emt 0:08:17]} 20. h5 {[%emt 0:04:06]} Nf4 {[%emt 0:02:10]} 21. Bh7+ {[%emt 0:13:31]} Kh8 {[%emt 0:01:18]} 22. Rdg1 {[%emt 0:12:33]} Nh3 {[%emt 0:03:00]} 23. Rg2 {[%emt 0:00:33]} Ng5 {[%emt 0:06:11]} 24. Bxg5 {[%emt 0:02:45]} fxg5 {[%emt 0:00:08]} 25. Ne4 {[%emt 0:00:27]} Bf4 {[%emt 0:00:27]} 26. Nxg5 {[%emt 0:00:25]} Bxg5 {[%emt 0:01:41]} 27. Rxg5 {[%emt 0:00:11]} Qf4 {[%emt 0:03:36]} 28. Rhg1 {[%emt 0:04:11]} Qxd4 {[%emt 0:01:25]} 29. Be4 {[%emt 0:06:47]} Bxc4 {[%emt 0:08:16]} 30. R5g4 {[%emt 0:07:46]} Rxe4 {[%emt 0:01:26]} 31. Rd1 {[%emt 0:04:44]} Bd3 {[%emt 0:02:31]} 0-1

[Event "10th Iberoamericano-ch 2024"]
[Site "Linares"]
[Date "2024.09.27"]
[Round "4.30"]
[White "Marin Ferragut, Pau"]
[Black "Rodriguez Redondo, Adhara"]
[Result "1/2-1/2"]
[ECO "A14"]
[WhiteElo "2348"]
[BlackElo "2184"]
[Annotator "RC"]
[PlyCount "88"]
[EventDate "2024.09.25"]
[EventType "swiss"]
[EventCountry "ESP"]
[SourceTitle "playchess.com"]
[Source "ChessBase"]
[SourceQuality "1"]
[TimeControl "5400+30"]

1. c4 {[%emt 0:00:16]} e6 {[%emt 0:00:08]} 2. Nf3 {[%emt 0:00:47]} d5 {[%emt 0:00:09]} 3. g3 {[%emt 0:00:29]} Nf6 {[%emt 0:00:19]} 4. Bg2 {[%emt 0:00:04]} Be7 {[%emt 0:00:16]} 5. O-O {[%emt 0:00:25]} O-O {[%emt 0:00:04]} 6. d3 {[%emt 0:00:36]} c5 {[%emt 0:05:30]} 7. cxd5 {[%emt 0:00:17]} exd5 {[%emt 0:03:47]} 8. d4 {[%emt 0:00:02]} Nc6 9. Nc3 Be6 {[%emt 0:13:03]} 10. dxc5 Bxc5 11. Na4 {[%emt 0:02:04]} Be7 12. Be3 b6 13. Nd4 Nxd4 14. Bxd4 Rc8 15. Nc3 Qd7 16. a4 Rfd8 17. Qd3 Bf5 18. Qb5 Ne4 19. Rfd1 Qe6 20. a5 Bc5 21. axb6 axb6 22. Nxe4 Bxe4 {[%emt 0:49:08]} 23. Bxe4 Qxe4 24. e3 {[%emt 0:45:23]} Qe8 25. Qxe8+ Rxe8 26. Bxc5 Rxc5 27. Ra7 g6 28. Rd7 Rb5 29. Rd2 Re5 30. Kf1 Kf8 31. h3 Ke8 32. Rb7 Re4 33. Ke1 Reb4 34. Rc2 Rc4 35. Kd2 Kf8 36. Kc1 Kg7 37. Kb1 Kf6 38. Rd2 Rcb4 39. Rc7 Ke6 40. Rdc2 Kf6 41. Rd7 Ke6 42. Rdc7 Kf6 43. Rb7 Rc4 44. Rc7 Ke5 1/2-1/2

[Event "10th Iberoamericano-ch 2024"]
[Site "Linares"]
[Date "2024.09.27"]
[Round "4.31"]
[White "Aragon Trujillo, Ricardo M."]
[Black "Domingo Nunez, Alejandro"]
[Result "0-1"]
[ECO "B06"]
[WhiteElo "2057"]
[BlackElo "2328"]
[Annotator "RC"]
[PlyCount "62"]
[EventDate "2024.09.25"]
[EventType "swiss"]
[EventCountry "ESP"]
[SourceTitle "playchess.com"]
[Source "ChessBase"]
[SourceQuality "1"]
[TimeControl "5400+30"]

1. e4 {[%emt 0:03:47]} g6 {[%emt 0:00:59]} 2. d4 {[%emt 0:00:16]} Bg7 {[%emt 0:00:01]} 3. Nf3 {[%emt 0:00:19]} c6 {[%emt 0:00:03]} 4. c4 {[%emt 0:00:21]} d6 {[%emt 0:00:14]} 5. Nc3 {[%emt 0:02:23]} Nd7 {[%emt 0:00:04]} 6. Be2 {[%emt 0:01:26]} e5 {[%emt 0:00:14]} 7. d5 {[%emt 0:02:30]} c5 {[%emt 0:00:07]} 8. O-O {[%emt 0:01:33]} Ne7 {[%emt 0:00:39]} 9. Be3 {[%emt 0:04:39]} O-O {[%emt 0:01:28]} 10. Qc1 {[%emt 0:03:04]} f5 {[%emt 0:30:45]} 11. Ng5 {[%emt 0:01:31]} Nf6 {[%emt 0:00:39]} 12. f4 {[%emt 0:08:35]} Nxe4 {[%emt 0:05:12]} 13. Ncxe4 {[%emt 0:08:15]} fxe4 {[%emt 0:01:49]} 14. fxe5 {[%emt 0:05:54]} Nf5 {[%emt 0:09:00]} 15. Bf4 {[%emt 0:14:28]} Nd4 {[%emt 0:08:38]} 16. Bd1 {[%emt 0:01:42]} dxe5 {[%emt 0:04:20]} 17. Be3 {[%emt 0:00:41]} Rxf1+ {[%emt 0:00:16]} 18. Kxf1 {[%emt 0:00:01]} Qf6+ {[%emt 0:00:34]} 19. Kg1 {[%emt 0:00:35]} Bf5 {[%emt 0:00:04]} 20. g4 {[%emt 0:02:07]} h6 {[%emt 0:08:16]} 21. Nh3 {[%emt 0:03:48]} Bd7 {[%emt 0:00:22]} 22. Nf2 {[%emt 0:05:16]} Nf3+ {[%emt 0:16:36]} 23. Bxf3 {[%emt 0:04:27]} Qxf3 {[%emt 0:00:05]} 24. Bxc5 {[%emt 0:00:46]} b6 {[%emt 0:03:11]} 25. Be3 {[%emt 0:01:57]} Rf8 {[%emt 0:00:06]} 26. a4 {[%emt 0:02:46]} Qe2 {[%emt 0:05:03]} 27. Ra3 {[%emt 0:05:14]} Rf3 {[%emt 0:00:36]} 28. a5 {[%emt 0:02:02]} Bf8 {[%emt 0:01:25]} 29. axb6 {[%emt 0:01:25]} axb6 {[%emt 0:00:01]} 30. Rc3 {[%emt 0:04:44]} Bb4 {[%emt 0:01:29]} 31. Rb3 {[%emt 0:00:01]} Be1 {[%emt 0:00:07]} 0-1

[Event "10th Iberoamericano-ch 2024"]
[Site "Linares"]
[Date "2024.09.27"]
[Round "4.32"]
[White "Ticona Rocabado, Licael Roderick"]
[Black "Rodriguez Lopez, Rafael"]
[Result "0-1"]
[ECO "E10"]
[WhiteElo "2321"]
[BlackElo "2162"]
[Annotator "RC"]
[PlyCount "76"]
[EventDate "2024.09.25"]
[EventType "swiss"]
[EventCountry "ESP"]
[SourceTitle "playchess.com"]
[Source "ChessBase"]
[SourceQuality "1"]
[TimeControl "5400+30"]

1. d4 {[%emt 0:06:00]} Nf6 {[%emt 0:00:08]} 2. c4 {[%emt 0:00:05]} e6 {[%emt 0:00:17]} 3. Nf3 {[%emt 0:00:06]} d5 {[%emt 0:00:32]} 4. e3 {[%emt 0:00:07]} Be7 {[%emt 0:01:03]} 5. b3 {[%emt 0:00:07]} O-O {[%emt 0:00:10]} 6. Bd3 {[%emt 0:00:14]} b6 {[%emt 0:00:32]} 7. O-O {[%emt 0:00:10]} Bb7 {[%emt 0:00:11]} 8. Bb2 {[%emt 0:00:21]} c5 {[%emt 0:00:20]} 9. cxd5 {[%emt 0:01:00]} Bxd5 {[%emt 0:04:54]} 10. Nc3 {[%emt 0:00:08]} Bb7 {[%emt 0:00:21]} 11. dxc5 {[%emt 0:00:52]} Bxc5 {[%emt 0:00:21]} 12. e4 {[%emt 0:01:31]} Nbd7 {[%emt 0:00:48]} 13. Qe2 {[%emt 0:02:02]} Qb8 {[%emt 0:00:36]} 14. Na4 {[%emt 0:00:46]} Bd6 {[%emt 0:02:07]} 15. Rad1 {[%emt 0:04:11]} Ne5 {[%emt 0:01:47]} 16. Nxe5 {[%emt 0:02:09]} Bxe5 {[%emt 0:00:05]} 17. g3 {[%emt 0:03:30]} Bxb2 {[%emt 0:00:33]} 18. Nxb2 {[%emt 0:00:07]} Rd8 {[%emt 0:02:29]} 19. Nc4 {[%emt 0:01:05]} Qc7 {[%emt 0:02:51]} 20. e5 {[%emt 0:01:14]} Qc6 {[%emt 0:02:52]} 21. f3 {[%emt 0:00:08]} Nd5 {[%emt 0:00:44]} 22. Rc1 {[%emt 0:03:13]} Rac8 {[%emt 0:10:51]} 23. Nd6 {[%emt 0:01:03]} Qxc1 {[%emt 0:00:12]} 24. Rxc1 {[%emt 0:00:04]} Rxc1+ {[%emt 0:00:09]} 25. Kf2 {[%emt 0:00:14]} Nb4 {[%emt 0:00:31]} 26. Qd2 {[%emt 0:02:05]} Nxd3+ {[%emt 0:00:38]} 27. Qxd3 {[%emt 0:00:01]} Rc5 {[%emt 0:02:29]} 28. b4 {[%emt 0:01:47]} Rc7 {[%emt 0:02:39]} 29. Qd4 {[%emt 0:02:19]} Bd5 {[%emt 0:02:21]} 30. Qf4 {[%emt 0:08:41]} Rc2+ {[%emt 0:01:16]} 31. Ke1 {[%emt 0:03:50]} Rf8 {[%emt 0:00:33]} 32. Qg5 {[%emt 0:02:36]} Bxf3 {[%emt 0:01:34]} 33. Qe7 {[%emt 0:00:11]} Rxa2 {[%emt 0:01:16]} 34. b5 {[%emt 0:01:14]} Rxh2 {[%emt 0:10:16]} 35. Qxa7 {[%emt 0:00:39]} Ra8 {[%emt 0:00:33]} 36. Qxf7+ {[%emt 0:00:14]} Kh8 {[%emt 0:00:06]} 37. Qxf3 {[%emt 0:01:50]} Ra1+ {[%emt 0:00:07]} 38. Qd1 {[%emt 0:00:02]} Rh1+ {[%emt 0:00:07]} 0-1

[Event "10th Iberoamericano-ch 2024"]
[Site "Linares"]
[Date "2024.09.27"]
[Round "4.33"]
[White "Blanco Acevedo, Cristobal Jose"]
[Black "Galvan Cipriani, Viviana"]
[Result "1-0"]
[ECO "B32"]
[WhiteElo "2301"]
[BlackElo "2141"]
[Annotator "RC"]
[PlyCount "85"]
[EventDate "2024.09.25"]
[EventType "swiss"]
[EventCountry "ESP"]
[SourceTitle "playchess.com"]
[Source "ChessBase"]
[SourceQuality "1"]
[TimeControl "5400+30"]

1. e4 {[%emt 0:00:13]} c5 {[%emt 0:07:58]} 2. Nf3 {[%emt 0:00:10]} Nc6 {[%emt 0:01:15]} 3. d4 {[%emt 0:00:07]} cxd4 {[%emt 0:00:04]} 4. Nxd4 {[%emt 0:00:03]} e5 {[%emt 0:00:07]} 5. Nb5 {[%emt 0:00:04]} d6 {[%emt 0:00:03]} 6. c4 {[%emt 0:00:06]} Be6 {[%emt 0:00:08]} 7. N1c3 {[%emt 0:00:12]} a6 {[%emt 0:00:05]} 8. Na3 {[%emt 0:00:11]} g6 {[%emt 0:00:12]} 9. Nc2 {[%emt 0:00:08]} Bg7 {[%emt 0:00:04]} 10. Be3 {[%emt 0:00:22]} Nf6 {[%emt 0:00:10]} 11. Be2 {[%emt 0:00:21]} O-O {[%emt 0:00:27]} 12. f3 {[%emt 0:00:36]} Rc8 {[%emt 0:00:56]} 13. Nd5 {[%emt 0:05:05]} Nh5 {[%emt 0:06:35]} 14. Qd2 {[%emt 0:03:17]} Bxd5 {[%emt 0:05:21]} 15. cxd5 {[%emt 0:02:00]} Nd4 {[%emt 0:00:53]} 16. Bd3 {[%emt 0:06:04]} Qb6 {[%emt 0:23:17]} 17. O-O-O {[%emt 0:08:43]} Nf4 {[%emt 0:09:46]} 18. Kb1 {[%emt 0:00:27]} Nh5 {[%emt 0:02:55]} 19. g4 {[%emt 0:03:38]} Nf6 {[%emt 0:00:18]} 20. h4 {[%emt 0:02:53]} h5 {[%emt 0:02:03]} 21. Rhg1 {[%emt 0:00:53]} Rfe8 {[%emt 0:04:45]} 22. Qf2 {[%emt 0:01:18]} hxg4 {[%emt 0:09:02]} 23. fxg4 {[%emt 0:03:23]} Qa5 {[%emt 0:05:04]} 24. h5 {[%emt 0:01:08]} Nxc2 {[%emt 0:01:54]} 25. Bxc2 {[%emt 0:00:09]} Rc4 {[%emt 0:00:24]} 26. h6 {[%emt 0:04:35]} Bh8 {[%emt 0:00:31]} 27. h7+ {[%emt 0:00:25]} Nxh7 {[%emt 0:01:35]} 28. Rh1 {[%emt 0:00:21]} Qc7 {[%emt 0:01:35]} 29. Bd3 {[%emt 0:02:46]} Rb4 {[%emt 0:01:13]} 30. g5 {[%emt 0:06:45]} Bg7 {[%emt 0:00:45]} 31. Rh2 {[%emt 0:01:49]} f6 {[%emt 0:06:23]} 32. Rxh7 {[%emt 0:01:57]} Kxh7 {[%emt 0:00:32]} 33. gxf6 {[%emt 0:00:11]} Rf8 {[%emt 0:02:27]} 34. Qh4+ {[%emt 0:00:38]} Kg8 {[%emt 0:00:04]} 35. fxg7 {[%emt 0:00:32]} Qxg7 {[%emt 0:00:05]} 36. Rh1 {[%emt 0:01:03]} Rf3 {[%emt 0:01:20]} 37. Bh6 {[%emt 0:02:41]} Qc7 {[%emt 0:02:19]} 38. Bd2 {[%emt 0:00:19]} Rxb2+ {[%emt 0:06:17]} 39. Kxb2 {[%emt 0:00:20]} Qb6+ {[%emt 0:00:10]} 40. Kc2 {[%emt 0:00:21]} Qc5+ {[%emt 0:00:11]} 41. Kd1 {[%emt 0:00:12]} Kf8 {[%emt 0:01:14]} 42. Qh8+ {[%emt 0:00:29]} Ke7 {[%emt 0:00:28]} 43. Bg5+ {[%emt 0:00:11]} 1-0

[Event "10th Iberoamericano-ch 2024"]
[Site "Linares"]
[Date "2024.09.27"]
[Round "4.34"]
[White "Romero Calduch, Sergio"]
[Black "Barrenechea Bahamonde, Gustavo"]
[Result "1/2-1/2"]
[ECO "D30"]
[WhiteElo "2276"]
[BlackElo "2093"]
[Annotator "RC"]
[PlyCount "73"]
[EventDate "2024.09.25"]
[EventType "swiss"]
[EventCountry "ESP"]
[SourceTitle "playchess.com"]
[Source "ChessBase"]
[SourceQuality "1"]
[TimeControl "5400+30"]

1. d4 {[%emt 0:00:03]} d5 {[%emt 0:07:00]} 2. c4 {[%emt 0:00:09]} e6 {[%emt 0:00:07]} 3. Nf3 {[%emt 0:00:09]} c5 {[%emt 0:00:07]} 4. cxd5 {[%emt 0:00:39]} exd5 {[%emt 0:00:07]} 5. g3 {[%emt 0:01:08]} Nc6 {[%emt 0:00:14]} 6. Bg2 {[%emt 0:00:17]} Nf6 {[%emt 0:00:08]} 7. O-O {[%emt 0:00:31]} Be7 {[%emt 0:00:11]} 8. dxc5 {[%emt 0:00:56]} Bxc5 {[%emt 0:00:11]} 9. a3 {[%emt 0:00:30]} a5 {[%emt 0:02:53]} 10. Qc2 {[%emt 0:07:37]} Bb6 {[%emt 0:02:38]} 11. Nc3 {[%emt 0:00:20]} h6 {[%emt 0:16:33]} 12. Nb5 {[%emt 0:08:39]} O-O {[%emt 0:03:29]} 13. Bf4 {[%emt 0:01:03]} Ne4 {[%emt 0:02:21]} 14. Qd3 {[%emt 0:17:21]} Nc5 {[%emt 0:07:31]} 15. Qd1 {[%emt 0:02:54]} Ne6 {[%emt 0:05:36]} 16. Bd6 {[%emt 0:34:20]} Re8 {[%emt 0:00:56]} 17. e3 {[%emt 0:00:41]} d4 {[%emt 0:25:14]} 18. e4 {[%emt 0:00:32]} Nc5 {[%emt 0:03:02]} 19. e5 {[%emt 0:03:25]} d3 {[%emt 0:02:18]} 20. Rc1 {[%emt 0:04:28]} d2 {[%emt 0:07:03]} 21. Rxc5 {[%emt 0:07:23]} Bxc5 {[%emt 0:00:10]} 22. Bxc5 {[%emt 0:01:05]} Bg4 {[%emt 0:03:14]} 23. Nd6 {[%emt 0:05:57]} Rxe5 {[%emt 0:01:44]} 24. Nxf7 {[%emt 0:01:40]} Kxf7 {[%emt 0:00:42]} 25. Nxe5+ {[%emt 0:00:05]} Nxe5 {[%emt 0:00:06]} 26. Qb3+ {[%emt 0:00:21]} Kf6 {[%emt 0:08:20]} 27. f3 {[%emt 0:00:42]} Be6 {[%emt 0:01:03]} 28. Qa4 {[%emt 0:00:38]} Nc4 {[%emt 0:01:01]} 29. Rd1 {[%emt 0:00:37]} Qd5 {[%emt 0:00:22]} 30. Bf2 {[%emt 0:00:32]} Rd8 {[%emt 0:00:13]} 31. Qc2 {[%emt 0:00:19]} Qd3 {[%emt 0:00:31]} 32. Qxd3 {[%emt 0:00:43]} Rxd3 {[%emt 0:00:01]} 33. Bf1 {[%emt 0:00:20]} Nxb2 {[%emt 0:00:29]} 34. Bxd3 {[%emt 0:00:17]} Nxd1 {[%emt 0:00:14]} 35. Bd4+ {[%emt 0:00:11]} Ke7 {[%emt 0:00:30]} 36. Bc2 {[%emt 0:00:21]} a4 {[%emt 0:00:40]} 37. Bxa4 {[%emt 0:01:00]} 1/2-1/2

[Event "10th Iberoamericano-ch 2024"]
[Site "Linares"]
[Date "2024.09.27"]
[Round "4.35"]
[White "Iglesias Ferreira, Andres"]
[Black "Dias, Ivo Rodrigues"]
[Result "1-0"]
[ECO "B53"]
[WhiteElo "2285"]
[BlackElo "2077"]
[Annotator "RC"]
[PlyCount "71"]
[EventDate "2024.09.25"]
[EventType "swiss"]
[EventCountry "ESP"]
[SourceTitle "playchess.com"]
[Source "ChessBase"]
[SourceQuality "1"]
[TimeControl "5400+30"]

1. e4 {[%emt 0:00:53]} c5 {[%emt 0:00:21]} 2. Nf3 {[%emt 0:00:13]} d6 {[%emt 0:00:13]} 3. d4 {[%emt 0:01:03]} cxd4 {[%emt 0:00:07]} 4. Qxd4 {[%emt 0:00:10]} Nc6 {[%emt 0:00:15]} 5. Qe3 {[%emt 0:00:41]} Nf6 {[%emt 0:00:10]} 6. Nc3 {[%emt 0:01:26]} e5 {[%emt 0:11:21]} 7. Bc4 {[%emt 0:02:05]} Be7 {[%emt 0:04:52]} 8. h3 {[%emt 0:02:18]} Be6 {[%emt 0:02:44]} 9. Qe2 {[%emt 0:05:30]} O-O {[%emt 0:05:46]} 10. Bg5 {[%emt 0:01:44]} Rc8 {[%emt 0:02:01]} 11. Bxf6 {[%emt 0:09:56]} Bxf6 {[%emt 0:00:58]} 12. Bb3 {[%emt 0:03:19]} Nd4 {[%emt 0:06:30]} 13. Nxd4 {[%emt 0:02:57]} exd4 {[%emt 0:00:08]} 14. Nd5 {[%emt 0:00:27]} Qa5+ {[%emt 0:02:59]} 15. Qd2 {[%emt 0:00:34]} Qxd2+ {[%emt 0:00:13]} 16. Kxd2 {[%emt 0:00:09]} Bxd5 {[%emt 0:02:01]} 17. Bxd5 {[%emt 0:00:10]} Rc5 {[%emt 0:05:26]} 18. f4 {[%emt 0:01:45]} b6 {[%emt 0:08:19]} 19. g4 {[%emt 0:03:00]} g5 {[%emt 0:00:34]} 20. fxg5 {[%emt 0:02:00]} Bxg5+ {[%emt 0:00:32]} 21. Kd3 {[%emt 0:00:13]} Bh4 {[%emt 0:03:12]} 22. Raf1 {[%emt 0:04:03]} Kg7 {[%emt 0:01:25]} 23. Rf5 {[%emt 0:03:31]} h6 {[%emt 0:11:15]} 24. Rhf1 {[%emt 0:04:19]} f6 {[%emt 0:02:00]} 25. R1f3 {[%emt 0:05:19]} Bg5 {[%emt 0:02:44]} 26. Rf2 {[%emt 0:05:46]} Be3 {[%emt 0:04:40]} 27. Rf1 {[%emt 0:00:28]} Bg5 {[%emt 0:00:23]} 28. Bb3 {[%emt 0:00:34]} Rfc8 {[%emt 0:08:00]} 29. Kxd4 {[%emt 0:01:17]} b5 {[%emt 0:01:02]} 30. Rd5 {[%emt 0:01:52]} R8c6 {[%emt 0:04:20]} 31. c3 {[%emt 0:02:00]} a5 {[%emt 0:00:33]} 32. a3 {[%emt 0:02:51]} b4 {[%emt 0:02:12]} 33. axb4 {[%emt 0:00:17]} axb4 {[%emt 0:00:07]} 34. cxb4 {[%emt 0:03:22]} Rc1 {[%emt 0:00:19]} 35. b5 {[%emt 0:01:13]} Rb6 {[%emt 0:02:40]} 36. Rxg5+ {[%emt 0:01:22]} 1-0

[Event "10th Iberoamericano-ch 2024"]
[Site "Linares"]
[Date "2024.09.27"]
[Round "4.37"]
[White "Portero Rubio, Martin"]
[Black "Cabezas Solano, David Alejandro"]
[Result "0-1"]
[ECO "B94"]
[WhiteElo "2043"]
[BlackElo "2248"]
[Annotator "RC"]
[PlyCount "208"]
[EventDate "2024.09.25"]
[EventType "swiss"]
[EventCountry "ESP"]
[SourceTitle "playchess.com"]
[Source "ChessBase"]
[SourceQuality "1"]
[TimeControl "5400+30"]

1. e4 {[%emt 0:00:02]} c5 {[%emt 0:03:06]} 2. Nf3 {[%emt 0:00:06]} d6 {[%emt 0:00:02]} 3. d4 {[%emt 0:00:06]} cxd4 {[%emt 0:00:04]} 4. Nxd4 {[%emt 0:00:05]} Nf6 {[%emt 0:00:07]} 5. Nc3 {[%emt 0:00:04]} a6 {[%emt 0:00:03]} 6. Bg5 {[%emt 0:00:06]} Nbd7 {[%emt 0:00:52]} 7. Bc4 {[%emt 0:00:23]} e6 {[%emt 0:09:49]} 8. Qe2 {[%emt 0:06:25]} b5 {[%emt 0:03:23]} 9. Bb3 {[%emt 0:01:01]} Nc5 {[%emt 0:06:35]} 10. O-O-O {[%emt 0:07:42]} Qc7 {[%emt 0:14:17]} 11. Rhe1 {[%emt 0:21:28]} Bd7 {[%emt 0:06:40]} 12. Nd5 {[%emt 0:18:37]} exd5 {[%emt 0:14:51]} 13. exd5+ {[%emt 0:00:36]} Kd8 {[%emt 0:00:01]} 14. Qf3 {[%emt 0:09:40]} Kc8 {[%emt 0:13:29]} 15. Bxf6 {[%emt 0:07:41]} gxf6 {[%emt 0:00:05]} 16. Qxf6 {[%emt 0:00:31]} Kb7 {[%emt 0:06:34]} 17. f4 {[%emt 0:06:55]} Rg8 {[%emt 0:00:26]} 18. g3 {[%emt 0:01:09]} Bg7 {[%emt 0:03:44]} 19. Qxf7 {[%emt 0:01:14]} Raf8 {[%emt 0:02:17]} 20. Qh5 {[%emt 0:01:15]} Bg4 {[%emt 0:01:22]} 21. Qxg4 {[%emt 0:01:17]} Bxd4 {[%emt 0:00:03]} 22. Qh5 {[%emt 0:03:23]} Rc8 {[%emt 0:01:28]} 23. Re2 {[%emt 0:03:04]} Bf6 {[%emt 0:01:43]} 24. Kb1 {[%emt 0:01:39]} Rg7 {[%emt 0:01:47]} 25. g4 {[%emt 0:02:45]} Re7 {[%emt 0:01:39]} 26. g5 {[%emt 0:00:40]} Bh8 {[%emt 0:02:50]} 27. Rde1 {[%emt 0:01:35]} Rxe2 {[%emt 0:01:42]} 28. Qxe2 {[%emt 0:01:11]} Rf8 {[%emt 0:01:06]} 29. Qe3 {[%emt 0:01:40]} Qd7 {[%emt 0:01:08]} 30. h4 {[%emt 0:01:00]} a5 {[%emt 0:01:46]} 31. c3 {[%emt 0:01:58]} Qf5+ {[%emt 0:01:32]} 32. Bc2 {[%emt 0:00:09]} Qxf4 {[%emt 0:00:12]} 33. Qe7+ {[%emt 0:00:24]} Kb8 {[%emt 0:00:26]} 34. Bxh7 {[%emt 0:00:49]} Be5 {[%emt 0:00:25]} 35. g6 {[%emt 0:00:39]} Qf5+ {[%emt 0:01:10]} 36. Ka1 {[%emt 0:00:12]} Qf2 {[%emt 0:00:55]} 37. Rb1 {[%emt 0:00:47]} Qf6 {[%emt 0:00:33]} 38. Qxf6 {[%emt 0:00:27]} Bxf6 {[%emt 0:00:01]} 39. Rf1 {[%emt 0:00:27]} Bg7 {[%emt 0:00:37]} 40. Rxf8+ {[%emt 0:00:41]} Bxf8 {[%emt 0:00:01]} 41. Kb1 {[%emt 0:00:22]} Nd7 {[%emt 0:00:25]} 42. Kc2 {[%emt 0:00:27]} Ne5 {[%emt 0:00:53]} 43. h5 {[%emt 0:00:35]} Bh6 {[%emt 0:00:22]} 44. b3 {[%emt 0:00:38]} Kc7 {[%emt 0:00:11]} 45. Bg8 {[%emt 0:00:28]} Ng4 {[%emt 0:01:04]} 46. Bf7 {[%emt 0:00:34]} Nf6 {[%emt 0:00:15]} 47. b4 {[%emt 0:00:25]} axb4 {[%emt 0:00:46]} 48. cxb4 {[%emt 0:00:01]} Nxh5 {[%emt 0:00:17]} 49. Kb3 {[%emt 0:00:26]} Nf4 {[%emt 0:01:00]} 50. a4 {[%emt 0:00:28]} bxa4+ {[%emt 0:00:38]} 51. Kxa4 {[%emt 0:00:00]} Kb6 {[%emt 0:00:09]} 52. Kb3 {[%emt 0:00:40]} Nd3 {[%emt 0:00:49]} 53. Kc3 {[%emt 0:01:18]} Nc1 {[%emt 0:00:33]} 54. Be8 {[%emt 0:00:31]} Bg7+ {[%emt 0:00:29]} 55. Kd2 {[%emt 0:00:30]} Na2 {[%emt 0:00:24]} 56. b5 {[%emt 0:00:27]} Nb4 {[%emt 0:00:31]} 57. Bc6 {[%emt 0:00:43]} Kc5 {[%emt 0:00:11]} 58. Ke3 {[%emt 0:00:23]} Nxd5+ {[%emt 0:00:46]} 59. Ke4 {[%emt 0:00:18]} Nc3+ {[%emt 0:00:34]} 60. Kf5 {[%emt 0:00:15]} Nxb5 {[%emt 0:00:02]} 61. Bg2 {[%emt 0:00:46]} Nd4+ {[%emt 0:00:13]} 62. Ke4 {[%emt 0:00:15]} Ne6 {[%emt 0:01:20]} 63. Kf5 {[%emt 0:00:08]} Nf8 {[%emt 0:00:09]} 64. Bf3 {[%emt 0:01:03]} Kb6 {[%emt 0:00:55]} 65. Bg2 {[%emt 0:00:06]} Kc7 {[%emt 0:00:01]} 66. Bd5 {[%emt 0:00:46]} Kd7 {[%emt 0:00:05]} 67. Bc4 {[%emt 0:00:52]} Kc6 {[%emt 0:00:45]} 68. Be2 {[%emt 0:00:21]} d5 {[%emt 0:00:21]} 69. Bf3 {[%emt 0:00:27]} Kc5 {[%emt 0:00:03]} 70. Bxd5 {[%emt 0:00:43]} Kxd5 {[%emt 0:00:01]} 71. Kf4 {[%emt 0:00:10]} Nxg6+ {[%emt 0:00:05]} 72. Kf5 {[%emt 0:00:14]} Ne7+ {[%emt 0:00:33]} 73. Kf4 {[%emt 0:00:10]} Bh6+ {[%emt 0:00:12]} 74. Kf3 {[%emt 0:00:13]} Kd4 {[%emt 0:00:15]} 75. Kg4 {[%emt 0:00:29]} Ke4 {[%emt 0:00:09]} 76. Kg3 {[%emt 0:00:19]} Bf4+ {[%emt 0:00:22]} 77. Kf2 {[%emt 0:00:33]} Nf5 {[%emt 0:00:18]} 78. Kg2 {[%emt 0:00:25]} Ke3 {[%emt 0:00:07]} 79. Kh3 {[%emt 0:00:22]} Nd4 {[%emt 0:00:40]} 80. Kg2 {[%emt 0:00:42]} Nf3 {[%emt 0:01:50]} 81. Kh3 {[%emt 0:00:29]} Ke4 {[%emt 0:01:06]} 82. Kg2 {[%emt 0:00:13]} Ng5 {[%emt 0:00:06]} 83. Kf2 {[%emt 0:00:16]} Kd3 {[%emt 0:00:03]} 84. Kg2 {[%emt 0:00:47]} Ke2 {[%emt 0:00:08]} 85. Kh1 {[%emt 0:00:18]} Ne4 {[%emt 0:00:18]} 86. Kg2 {[%emt 0:00:07]} Nf2 {[%emt 0:00:01]} 87. Kg1 {[%emt 0:00:13]} Kf3 {[%emt 0:00:08]} 88. Kf1 {[%emt 0:00:04]} Bh2 {[%emt 0:00:05]} 89. Ke1 {[%emt 0:00:02]} Ne4 {[%emt 0:00:10]} 90. Kd1 {[%emt 0:00:20]} Ke3 {[%emt 0:00:01]} 91. Kc2 {[%emt 0:00:10]} Nd2 {[%emt 0:00:08]} 92. Kc3 {[%emt 0:00:19]} Bd6 {[%emt 0:00:05]} 93. Kc2 {[%emt 0:00:24]} Bb4 {[%emt 0:00:15]} 94. Kd1 {[%emt 0:00:31]} Nb3 {[%emt 0:00:06]} 95. Kc2 {[%emt 0:00:08]} Nd4+ {[%emt 0:00:02]} 96. Kd1 {[%emt 0:00:22]} Kd3 {[%emt 0:00:12]} 97. Kc1 {[%emt 0:00:01]} Ke2 {[%emt 0:00:06]} 98. Kb2 {[%emt 0:00:09]} Kd2 {[%emt 0:00:02]} 99. Kb1 {[%emt 0:00:10]} Ba3 {[%emt 0:00:06]} 100. Ka2 {[%emt 0:00:09]} Bc1 {[%emt 0:00:05]} 101. Kb1 {[%emt 0:00:12]} Kd1 {[%emt 0:00:06]} 102. Ka2 {[%emt 0:00:13]} Kc2 {[%emt 0:00:07]} 103. Ka1 {[%emt 0:00:03]} Nb5 {[%emt 0:00:04]} 104. Ka2 {[%emt 0:00:03]} Nc3+ {[%emt 0:00:04]} 0-1